bitfinex-derivatives/quotes_SOLF0:USTF0_20250331
["timestamp","ask_amount","ask_price","bid_price","bid_amount"]
[1743437642526,7.9229,126.23,126.21,49.34467363]
[1743437643926,7.9233,126.22,126.21,41.42107363]
[1743437644126,7.9233,126.22,126.21,30.39315916]
[1743437645318,7.9233,126.22,126.21,0.05315916]
[1743437646226,0.05308054,126.24,126.21,11.08107363]
[1743437646427,0.05308054,126.24,126.22,41.26791447]
[1743437646925,0.05308054,126.24,126.22,30.24]
[1743437647822,7.97508054,126.24,126.22,30.24]
[1743437648028,0.05308054,126.24,126.22,30.24]
[1743437648422,0.05308054,126.24,126.22,38.1631]
[1743437649024,0.05308054,126.24,126.22,41.26791447]
[1743437649225,0.05308054,126.24,126.22,30.24]
[1743437649529,0.05308054,126.24,126.22,38.163]
[1743437650327,0.05308054,126.24,126.22,30.24]
[1743437651231,7.9226,126.23,126.22,30.24]
[1743437653234,7.9233,126.22,126.21,0.05315916]
[1743437658339,0.05308054,126.24,126.21,11.08107363]
[1743437658737,7.97508054,126.24,126.22,30.24]
[1743437659440,7.97508054,126.24,126.22,38.1632]
[1743437659839,7.9226,126.23,126.22,30.24]
[1743437660138,11.08099501,126.24,126.21,0.05315916]
[1743437660543,7.9233,126.22,126.21,0.05315916]
[1743437664544,0.05308054,126.24,126.21,0.05315916]
[1743437665141,0.05308054,126.24,126.21,7.97675916]
[1743437665650,7.9227,126.23,126.21,7.97675916]
[1743437666350,0.05308054,126.24,126.21,7.97675916]
[1743437666553,0.05308054,126.24,126.22,7.9231]
[1743437666851,0.05308054,126.24,126.23,11.02791447]
[1743437667050,0.05308054,126.24,126.23,18.95051447]
[1743437668356,0.05308054,126.24,126.23,7.9226]
[1743437668553,0.05308054,126.24,126.23,18.95051447]
[1743437670060,0.05308054,126.24,126.23,11.02791447]
[1743437670954,0.05308054,126.24,126.22,30.24]
[1743437671257,0.05308054,126.24,126.21,0.05315916]
[1743437671258,11.02791447,126.23,126.21,0.05315916]
[1743437671659,0.05308054,126.24,126.21,0.05315916]
[1743437672659,7.9233,126.22,126.21,0.05315916]
[1743437672956,0.05308054,126.24,126.21,0.05315916]
[1743437673359,7.9233,126.22,126.21,0.05315916]
[1743437680862,0.05308054,126.24,126.21,11.08107363]
[1743437681064,0.05308054,126.24,126.21,41.30107363]
[1743437681562,7.97558054,126.24,126.21,49.22467363]
[1743437683267,7.9226,126.23,126.21,49.22467363]
[1743437684062,7.97538054,126.24,126.21,49.22467363]
[1743437684269,0.05308054,126.24,126.21,49.22467363]
[1743437684961,7.9226,126.23,126.21,49.22467363]
[1743437685864,7.97538054,126.24,126.21,49.22467363]
[1743437686065,7.97538054,126.24,126.22,18.95111447]
[1743437686265,0.05308054,126.24,126.22,11.02791447]
[1743437686768,0.05308054,126.24,126.22,18.95081447]
[1743437687572,0.05308054,126.24,126.23,18.95051447]
[1743437687759,0.05308054,126.24,126.23,11.02791447]
[1743437688467,0.05308054,126.24,126.23,18.95051447]
[1743437688869,284.96,126.3,126.26,7.9206]
[1743437689065,13.05191447,126.31,126.26,18.94851447]
[1743437689466,7.9186,126.3,126.26,7.9205]
[1743437689667,13.05191447,126.31,126.26,7.9205]
[1743437689964,7.9186,126.3,126.26,7.9205]
[1743437690160,7.97567281,126.3,126.27,0.05845268]
[1743437691073,7.97567281,126.3,126.27,7.97855268]
[1743437691272,19.00358728,126.3,126.27,7.97855268]
[1743437692570,19.00358728,126.3,126.28,7.9194]
[1743437692872,7.97567281,126.3,126.28,7.9194]
[1743437693274,0.05707281,126.3,126.28,7.9195]
[1743437694075,7.97557281,126.3,126.28,7.9195]
[1743437695971,7.9189,126.29,126.27,7.97825268]
[1743437697371,7.97567281,126.3,126.27,7.97825268]
[1743437697678,7.97567281,126.3,126.28,7.9194]
[1743437698172,7.97567281,126.3,126.27,7.97825268]
[1743437698666,7.97567281,126.3,126.27,0.05845268]
[1743437698875,7.97567281,126.3,126.28,7.9191]
[1743437700277,7.9191,126.29,126.27,7.97825268]
[1743437700578,11.08498728,126.3,126.27,0.05845268]
[1743437700871,0.05707281,126.3,126.28,30.22]
[1743437701077,0.05707281,126.3,126.29,11.02791447]
[1743437701574,0.05707281,126.3,126.28,49.16701447]
[1743437702378,0.05707281,126.3,126.29,18.94681447]
[1743437702677,0.05707281,126.3,126.29,11.02791447]
[1743437703277,7.97527281,126.3,126.29,11.02791447]
[1743437704279,7.9189,126.29,126.28,41.24791447]
[1743437704482,7.9189,126.29,126.28,30.22]
[1743437706780,7.97567281,126.3,126.28,38.1393]
[1743437706980,7.97567281,126.3,126.28,30.22]
[1743437708284,7.97567281,126.3,126.28,49.16741447]
[1743437708285,0.05707281,126.3,126.28,49.16741447]
[1743437708793,7.97557281,126.3,126.28,49.16741447]
[1743437709688,7.97557281,126.3,126.28,41.24791447]
[1743437709889,0.05707281,126.3,126.28,41.24791447]
[1743437710392,7.9189,126.29,126.28,41.24791447]
[1743437710690,0.05707281,126.3,126.28,41.24791447]
[1743437710990,7.97557281,126.3,126.28,49.16721447]
[1743437711786,7.9189,126.29,126.28,41.24791447]
[1743437711992,7.9189,126.29,126.28,30.22]
[1743437712189,11.02791447,126.29,126.27,0.05845268]
[1743437712490,0.05707281,126.3,126.27,11.08636715]
[1743437712889,7.97597281,126.3,126.27,19.00606715]
[1743437713683,0.05707281,126.3,126.28,7.9194]
[1743437713889,0.05707281,126.3,126.28,49.14731447]
[1743437714392,0.05707281,126.3,126.28,41.22791447]
[1743437714588,0.05707281,126.3,126.28,30.2]
[1743437714785,7.9189,126.29,126.28,30.2]
[1743437715996,0.05707281,126.3,126.28,41.22791447]
[1743437716495,0.05707281,126.3,126.29,7.9189]
[1743437716690,0.05707281,126.3,126.28,32.2354]
[1743437716884,0.05707281,126.3,126.28,43.26331447]
[1743437717088,0.05707281,126.3,126.28,41.22791447]
[1743437717692,0.05707281,126.3,126.28,49.14731447]
[1743437719394,0.05707281,126.3,126.29,7.9189]
[1743437719796,0.05707281,126.3,126.28,41.22791447]
[1743437719994,0.05707281,126.3,126.28,49.14691447]
[1743437720697,0.05707281,126.3,126.29,7.9189]
[1743437721296,0.05707281,126.3,126.28,49.14721447]
[1743437721496,0.05707281,126.3,126.28,38.1193]
[1743437721797,7.97557281,126.3,126.28,38.1193]
[1743437722093,0.05707281,126.3,126.28,30.2]
[1743437722294,7.9195,126.28,126.27,0.05845268]
[1743437723294,11.02791447,126.28,126.22,2.1177]
[1743437723498,11.02791447,126.24,126.19,41.22791447]
[1743437723897,7.923,126.23,126.2,7.9242]
[1743437724292,11.02791447,126.25,126.2,7.9245]
[1743437724496,7.9233,126.22,126.2,7.97612895]
[1743437724897,0.05886414,126.23,126.2,7.97612895]
[1743437725094,7.98196414,126.23,126.2,19.00404342]
[1743437725496,0.05886414,126.23,126.2,19.00404342]
[1743437725996,7.9235,126.22,126.2,11.07954342]
[1743437726796,0.05886414,126.23,126.21,11.02791447]
[1743437727396,7.98176414,126.23,126.21,11.02791447]
[1743437730203,7.9233,126.22,126.21,11.02791447]
[1743437730395,0.05886414,126.23,126.21,11.02791447]
[1743437730800,7.98176414,126.23,126.21,11.02791447]
[1743437731700,7.9233,126.22,126.21,11.02791447]
[1743437734106,0.05886414,126.23,126.2,11.07954342]
[1743437734309,11.02791447,126.22,126.2,0.05162895]
[1743437734504,11.02791447,126.21,126.2,2.895e-05]
[1743437734707,18.95181447,126.21,126.2,2.895e-05]
[1743437747419,7.9239,126.21,126.2,2.895e-05]
[1743437747721,0.05886414,126.23,126.2,11.02794342]
[1743437747922,0.05886414,126.23,126.21,11.02791447]
[1743437748122,0.05886414,126.23,126.22,18.95121447]
[1743437748321,2.1086,126.29,126.22,41.24791447]
[1743437748516,7.9196,126.28,126.25,11.02791447]
[1743437748719,43.5100613,126.3,126.25,41.24791447]
[1743437748914,54.53797577,126.3,126.25,41.24791447]
[1743437749111,7.9196,126.28,126.25,41.24791447]
[1743437749317,11.02791447,126.29,126.25,30.22]
[1743437749518,0.05228398,126.28,126.25,41.30877981]
[1743437749720,7.9202,126.27,126.25,30.28086534]
[1743437750420,7.9202,126.27,126.25,38.20226534]
[1743437750620,7.97208398,126.28,126.25,30.28086534]
[1743437750922,0.05228398,126.28,126.25,41.30877981]
[1743437751322,7.97208398,126.28,126.25,41.30877981]
[1743437751519,0.05228398,126.28,126.25,41.30877981]
[1743437751725,0.05228398,126.28,126.25,30.28086534]
[1743437752018,0.05228398,126.28,126.27,7.9201]
[1743437752224,21.24960725,126.35,126.26,17.23400725]
[1743437752423,7.9175,126.32,126.26,17.23400725]
[1743437752625,304.48820725,126.37,126.28,17.23400725]
[1743437752919,304.48820725,126.37,126.31,7.9175]
[1743437753314,0.05999376,126.35,126.33,0.05831935]
[1743437753517,7.9157,126.34,126.33,0.05831935]
[1743437758122,0.05999376,126.35,126.33,0.05831935]
[1743437758323,7.97529376,126.35,126.33,0.05831935]
[1743437758731,7.9157,126.34,126.33,0.05831935]
[1743437760034,7.97519376,126.35,126.33,0.05831935]
[1743437760228,0.05999376,126.35,126.33,0.05831935]
[1743437760731,7.9157,126.34,126.33,0.05831935]
[1743437760930,7.9157,126.34,126.33,1.935e-05]
[1743437761130,38.1,126.34,126.21,47.41400725]
[1743437761336,17.23400725,126.3,126.23,7.9223]
[1743437761534,30.18,126.29,126.23,7.9223]
[1743437761734,30.18,126.29,126.21,55.33750725]
[1743437761934,30.18,126.29,126.19,23.51740725]
[1743437762135,30.18,126.29,126.21,30.18]
[1743437762334,0.05749976,126.25,126.23,0.05482997]
[1743437762536,7.922,126.24,126.23,0.05482997]
[1743437763133,7.97919976,126.25,126.23,0.05482997]
[1743437763434,0.05749976,126.25,126.23,0.05482997]
[1743437764036,0.05749976,126.25,126.24,7.922]
[1743437764335,0.05749976,126.25,126.24,38.102]
[1743437764739,17.23400725,126.32,126.26,7.9203]
[1743437764937,17.23400725,126.32,126.24,30.18]
[1743437764938,7.9179,126.31,126.25,19.28160725]
[1743437765138,7.9179,126.31,126.25,21.39910725]
[1743437765335,7.9179,126.31,126.28,7.9189]
[1743437765534,7.9179,126.31,126.28,30.18]
[1743437765833,17.23400725,126.34,126.28,30.18]
[1743437766038,0.05152856,126.31,126.28,30.23382464]
[1743437766231,7.9189,126.29,126.28,0.05382464]
[1743437767734,7.9189,126.29,126.28,2.464e-05]
[1743437768432,7.9189,126.29,126.18,2.1175]
[1743437768433,7.9234,126.22,126.19,17.23400725]
[1743437768639,17.23400725,126.27,126.2,30.18]
[1743437768836,47.41400725,126.27,126.2,30.18]
[1743437769040,47.41400725,126.27,126.19,30.18]
[1743437769441,17.23400725,126.25,126.19,30.18]
[1743437769640,0.05174571,126.24,126.22,0.05105785]
[1743437769838,0.05174571,126.24,126.22,5.785e-05]
[1743437770043,17.23400725,126.23,126.22,5.785e-05]
[1743437770336,7.9226,126.23,126.22,5.785e-05]
[1743437772938,0.05174571,126.24,126.22,5.785e-05]
[1743437773439,7.97414571,126.24,126.22,5.785e-05]
[1743437773641,0.05174571,126.24,126.22,5.785e-05]
[1743437773841,0.05174571,126.24,126.22,7.92305785]
[1743437775142,0.05174571,126.24,126.23,7.9226]
[1743437775449,0.05174571,126.24,126.22,2.17635785]
[1743437775643,0.05174571,126.24,126.22,5.785e-05]
[1743437776243,7.9226,126.23,126.22,5.785e-05]
[1743437780153,25.15660725,126.23,126.22,5.785e-05]
[1743437781352,7.9226,126.23,126.22,5.785e-05]
[1743437783445,25.15660725,126.23,126.22,5.785e-05]
[1743437784245,7.9226,126.23,126.22,5.785e-05]
[1743437789076,25.15660725,126.23,126.22,5.785e-05]
[1743437790984,7.9268,126.17,126.12,47.43400725]
[1743437791853,7.9268,126.17,126.15,7.9276]
[1743437792057,0.06066709,126.16,126.15,7.9276]
[1743437792253,0.06066709,126.16,126.12,47.43400725]
[1743437792456,0.06066709,126.16,126.14,7.928]
[1743437793158,49.41950725,126.23,126.15,30.2]
[1743437793363,47.43400725,126.23,126.16,30.2]
[1743437793661,47.43400725,126.23,126.16,38.1268]
[1743437793662,7.9259,126.18,126.16,38.1268]
[1743437793860,17.23400725,126.23,126.16,30.2]
[1743437794256,17.23400725,126.23,126.16,38.1267]
[1743437794472,0.06033287,126.21,126.18,0.05821848]
[1743437795078,17.29434012,126.21,126.18,0.05821848]
[1743437795284,17.29434012,126.21,126.18,1.848e-05]
[1743437795584,19.48404012,126.21,126.18,1.848e-05]
[1743437796273,7.9251,126.19,126.18,1.848e-05]
[1743437796783,25.15910725,126.19,126.18,1.848e-05]
[1743437797190,7.9298,126.12,126.09,7.9309]
[1743437797388,7.9298,126.12,126.1,30.2]
[1743437797876,7.9302,126.11,126.09,7.9311]
[1743437798078,7.9302,126.11,126.1,30.2]
[1743437798272,17.23400725,126.17,126.1,30.2]
[1743437798570,7.9306,126.11,126.1,30.2]
[1743437798757,0.05947071,126.15,126.1,30.2]
[1743437798960,17.23400725,126.17,126.1,38.1306]
[1743437799163,0.05854732,126.14,126.1,30.2]
[1743437799465,7.9292,126.13,126.1,38.1305]
[1743437799669,0.05854732,126.14,126.08,2.1275]
[1743437799867,0.05854732,126.14,126.08,30.2]
[1743437800062,7.9312,126.1,126.08,30.2]
[1743437800258,17.23400725,126.15,126.08,30.2]
[1743437800557,32.2466,126.16,126.08,30.2]
[1743437800558,0.05878694,126.1,126.08,30.2]
[1743437800763,17.23400725,126.17,126.08,30.2]
[1743437800965,0.05677093,126.1,126.08,30.2]
[1743437801167,0.05845035,126.1,126.09,17.23400725]
[1743437801362,17.23400725,126.17,126.08,30.2]
[1743437801869,17.23400725,126.17,126.11,7.9298]
[1743437802068,17.23400725,126.17,126.11,38.1298]
[1743437802267,7.9286,126.14,126.11,38.1298]
[1743437802463,0.06028773,126.15,126.13,0.05648579]
[1743437803469,7.9283,126.14,126.13,0.05648579]
[1743437806267,7.98828773,126.15,126.13,0.05648579]
[1743437806465,0.06028773,126.15,126.14,30.2]
[1743437806670,7.925,126.2,126.14,30.2]
[1743437807058,285.18,126.21,126.14,30.2]
[1743437807262,293.1042,126.21,126.15,2.0252]
[1743437807466,7.9242,126.21,126.15,2.0252]
[1743437807666,7.9242,126.21,126.18,7.9252]
[1743437807868,0.05766274,126.19,126.18,38.1252]
[1743437809880,43.5100613,126.25,126.18,30.2]
[1743437810177,315.46,126.27,126.18,30.2]
[1743437810366,315.46,126.27,126.2,7.9242]
[1743437810773,7.9223,126.24,126.18,30.2]
[1743437810976,7.9223,126.24,126.22,0.0580875]
[1743437811474,7.9226,126.23,126.22,0.0580875]
[1743437819483,0.05722385,126.24,126.22,0.0580875]
[1743437819983,0.05722385,126.24,126.22,7.9808875]
[1743437820379,0.05722385,126.24,126.22,0.0580875]
[1743437820577,0.05722385,126.24,126.23,7.9226]
[1743437820879,2.0631,126.3,126.22,4.2596875]
[1743437821184,75.8717613,126.32,126.22,4.2016]
[1743437821681,7.9206,126.27,126.24,7.922]
[1743437821882,7.9206,126.27,126.26,0.05260745]
[1743437825086,7.9206,126.27,126.26,7.45e-06]
[1743437826786,7.9233,126.22,126.21,30.18]
[1743437826993,33.08516669,126.25,126.18,32.1607]
[1743437827185,7.9251,126.19,126.18,32.1607]
[1743437829279,0.05275942,126.2,126.18,32.1607]
[1743437829789,2.0552,126.27,126.18,32.1607]
[1743437829991,7.923,126.23,126.18,32.1607]
[1743437830389,2.0552,126.27,126.18,32.1607]
[1743437830591,7.9234,126.22,126.19,7.9245]
[1743437830787,7.9234,126.22,126.21,0.05410025]
[1743437830992,7.9234,126.22,126.21,30.23410025]
[1743437831392,7.9228,126.23,126.21,30.23410025]
[1743437831794,0.055549,126.24,126.21,30.23410025]
[1743437833294,7.923,126.23,126.21,30.23410025]
[1743437834389,0.055549,126.24,126.21,38.15770025]
[1743437835296,7.9227,126.23,126.21,38.15770025]
[1743437835490,0.055549,126.24,126.21,38.15770025]
[1743437835690,0.055549,126.24,126.22,7.9231]
[1743437836092,0.055549,126.24,126.23,7.9226]
[1743437836491,0.055549,126.24,126.21,32.30110025]
[1743437836893,0.055549,126.24,126.22,7.9227]
[1743437837093,0.055549,126.24,126.21,32.30110025]
[1743437837295,7.977949,126.24,126.21,32.30110025]
[1743437837700,7.977949,126.24,126.22,7.923]
[1743437838000,7.977949,126.24,126.21,32.30110025]
[1743437838197,0.055549,126.24,126.21,32.30110025]
[1743437838790,7.9233,126.22,126.21,0.05410025]
[1743437840401,7.9233,126.22,126.21,2.5e-07]
[1743437842296,7.9277,126.15,126.14,4.2559]
[1743437842497,7.9277,126.15,126.14,34.4359]
[1743437842901,7.9277,126.15,126.14,4.2559]
[1743437843104,7.9273,126.16,126.14,4.2559]
[1743437843606,0.05436198,126.16,126.14,4.30642499]
[1743437843809,17.24226669,126.22,126.14,4.30642499]
[1743437844100,17.24226669,126.22,126.14,4.2559]
[1743437844297,7.9271,126.16,126.14,4.2559]
[1743437844802,17.24226669,126.22,126.14,4.2559]
[1743437845408,0.05357715,126.19,126.17,0.05247804]
[1743437845609,7.9258,126.18,126.17,0.05247804]
[1743437846206,7.9258,126.18,126.17,7.804e-05]
[1743437846802,25.16806669,126.18,126.17,7.804e-05]
[1743437847012,7.9295,126.12,126.1,2.0606]
[1743437847211,19.35636669,126.18,126.09,19.23176669]
[1743437847413,17.24226669,126.16,126.09,30.18]
[1743437847711,17.24226669,126.16,126.08,30.18]
[1743437847914,21.33386669,126.16,126.08,30.18]
[1743437848113,21.33386669,126.16,126.08,38.1119]
[1743437848308,0.05098595,126.13,126.11,0.06089783]
[1743437848725,7.9295,126.12,126.11,0.06089783]
[1743437849616,0.05098595,126.13,126.11,0.06089783]
[1743437849805,0.05098595,126.13,126.11,30.24089783]
[1743437850215,0.05098595,126.13,126.12,7.9295]
[1743437852514,304.44326669,126.2,126.11,47.48316452]
[1743437852515,302.40226669,126.2,126.11,47.48316452]
[1743437852817,285.16,126.2,126.12,2.1676]
[1743437853116,285.16,126.2,126.15,7.9275]
[1743437853316,285.16,126.2,126.15,38.1075]
[1743437853616,7.9261,126.18,126.15,38.1075]
[1743437853815,7.9261,126.18,126.16,0.0600068]
[1743437855414,7.9264,126.17,126.16,0.0600068]
[1743437857318,7.9264,126.17,126.16,6.8e-06]
[1743437863524,7.9304,126.11,126.08,34.3455]
[1743437863719,17.24226669,126.16,126.08,34.3455]
[1743437864035,7.9299,126.12,126.09,7.9314]
[1743437864519,7.9901001,126.12,126.09,7.98719032]
[1743437864717,0.0602001,126.12,126.1,7.9308]
[1743437865327,7.9900001,126.12,126.09,7.98689032]
[1743437867330,7.9303,126.11,126.09,7.98689032]
[1743437867926,7.9308,126.1,126.09,0.05579032]
[1743437883346,7.9903001,126.12,126.09,0.05579032]
[1743437883543,0.0602001,126.12,126.09,0.05579032]
[1743437883744,7.9901001,126.12,126.09,19.04595707]
[1743437883942,11.11926685,126.12,126.09,0.05579032]
[1743437884242,11.05906675,126.1,126.09,0.05579032]
[1743437884444,18.98986675,126.1,126.09,0.05579032]
[1743437885148,7.9308,126.1,126.09,0.05579032]
[1743437887250,7.9304,126.11,126.09,0.05579032]
[1743437887451,7.9304,126.11,126.09,7.98719032]
[1743437887650,11.11926685,126.12,126.09,0.05579032]
[1743437887851,0.0602001,126.12,126.09,11.11485707]
[1743437888054,0.0602001,126.12,126.1,7.9306]
[1743437888246,7.9304,126.11,126.09,11.11485707]
[1743437888551,7.9304,126.11,126.09,0.05579032]
[1743437889147,0.0602001,126.12,126.09,0.05579032]
[1743437889148,7.9308,126.1,126.09,0.05579032]
[1743437889548,11.11926685,126.12,126.09,0.05579032]
[1743437890252,7.9308,126.1,126.09,0.05579032]
[1743437891252,0.0602001,126.12,126.09,0.05579032]
[1743437891751,7.9302,126.11,126.09,0.05579032]
[1743437892449,0.0602001,126.12,126.09,0.05579032]
[1743437892450,7.9900001,126.12,126.09,0.05579032]
[1743437892847,7.9900001,126.12,126.1,7.9305]
[1743437893152,7.9302,126.11,126.09,0.05579032]
[1743437893346,0.0602001,126.12,126.09,0.05579032]
[1743437893544,11.11926685,126.12,126.09,0.05579032]
[1743437894950,0.0602001,126.12,126.1,11.05906675]
[1743437895154,0.0602001,126.12,126.1,41.23906675]
[1743437895356,0.0602001,126.12,126.11,7.9302]
[1743437895555,11.05906675,126.17,126.1,41.23906675]
[1743437895755,11.05906675,126.17,126.12,11.05906675]
[1743437896156,11.05906675,126.17,126.13,30.18]
[1743437896546,18.98566675,126.17,126.14,7.9279]
[1743437896749,0.05779066,126.16,126.14,7.97832914]
[1743437896954,0.05779066,126.16,126.14,11.10949589]
[1743437897155,0.05779066,126.16,126.15,7.9277]
[1743437897456,0.05779066,126.16,126.14,11.10949589]
[1743437897656,0.05779066,126.16,126.14,19.03729589]
[1743437898258,0.05779066,126.16,126.15,7.9277]
[1743437898555,11.05906675,126.2,126.15,11.05906675]
[1743437898758,11.05906675,126.2,126.16,30.18]
[1743437898956,7.9253,126.19,126.16,38.1066]
[1743437899148,11.05906675,126.21,126.17,11.05906675]
[1743437899348,11.05906675,126.21,126.18,18.98466675]
[1743437899349,7.9242,126.21,126.18,18.98466675]
[1743437899763,7.97945552,126.21,126.18,19.03570523]
[1743437901654,0.05525552,126.21,126.18,0.05103848]
[1743437901857,11.11432227,126.21,126.18,0.05103848]
[1743437902059,0.05525552,126.21,126.18,0.05103848]
[1743437902358,11.11432227,126.21,126.18,0.05103848]
[1743437903562,7.9251,126.19,126.18,0.05103848]
[1743437904061,11.11432227,126.21,126.18,0.05103848]
[1743437904359,0.05525552,126.21,126.18,0.05103848]
[1743437904565,7.9251,126.19,126.18,0.05103848]
[1743437907663,0.05525552,126.21,126.18,0.05103848]
[1743437909158,11.11432227,126.21,126.18,0.05103848]
[1743437909361,7.9251,126.19,126.18,0.05103848]
[1743437910766,7.9248,126.2,126.18,0.05103848]
[1743437910966,7.9248,126.2,126.18,11.11010523]
[1743437911161,0.05525552,126.21,126.19,7.9247]
[1743437911357,0.05525552,126.21,126.19,38.0847]
[1743437911560,0.05525552,126.21,126.19,49.14376675]
[1743437911760,7.97945552,126.21,126.19,49.14376675]
[1743437911960,0.05525552,126.21,126.2,18.98356675]
[1743437912364,7.9228,126.23,126.2,11.05906675]
[1743437912560,11.05906675,126.26,126.21,11.05906675]
[1743437912762,11.05906675,126.26,126.2,11.05906675]
[1743437912963,7.9239,126.22,126.2,11.05906675]
[1743437913468,7.98430693,126.22,126.2,11.1159069]
[1743437913966,7.9239,126.21,126.2,11.1159069]
[1743437914265,0.06040693,126.22,126.2,11.1159069]
[1743437914769,7.98420693,126.22,126.2,11.1159069]
[1743437915268,0.06040693,126.22,126.2,11.1159069]
[1743437915967,0.06040693,126.22,126.21,7.9239]
[1743437916166,5.0,126.27,126.2,15.2994069]
[1743437916167,16.05906675,126.27,126.2,15.2994069]
[1743437916366,16.05906675,126.27,126.22,11.05906675]
[1743437916566,16.05906675,126.27,126.23,30.16]
[1743437916765,7.9217,126.25,126.23,30.16]
[1743437917362,0.05515395,126.25,126.24,11.05906675]
[1743437917565,0.05515395,126.25,126.23,41.27787058]
[1743437918766,7.922,126.24,126.23,41.27787058]
[1743437919469,7.922,126.24,126.23,0.05880383]
[1743437921874,7.97675395,126.25,126.23,11.11787058]
[1743437922774,7.97675395,126.25,126.23,19.04017058]
[1743437923271,7.97675395,126.25,126.23,11.11787058]
[1743437923873,0.05515395,126.25,126.23,19.04047058]
[1743437924064,0.05515395,126.25,126.24,30.14]
[1743437924861,7.97655395,126.25,126.24,30.14]
[1743437925072,0.05515395,126.25,126.24,30.14]
[1743437925771,0.05515395,126.25,126.24,49.12106675]
[1743437926772,5.0,126.27,126.26,7.9207]
[1743437927071,7.9178,126.31,126.26,11.05906675]
[1743437927270,7.9178,126.31,126.29,7.9189]
[1743437927664,7.9178,126.31,126.28,11.05906675]
[1743437927865,7.9700086,126.31,126.28,11.11584588]
[1743437928065,0.0522086,126.31,126.28,11.11584588]
[1743437928766,7.9701086,126.31,126.28,19.03504588]
[1743437929176,0.0522086,126.31,126.29,7.9188]
[1743437929374,0.0522086,126.31,126.28,11.11584588]
[1743437929577,0.0522086,126.31,126.3,11.05906675]
[1743437929876,0.0522086,126.31,126.3,41.19906675]
[1743437930374,7.9698086,126.31,126.3,41.19906675]
[1743437930573,0.0522086,126.31,126.28,41.25584588]
[1743437930875,0.0522086,126.31,126.28,30.19677913]
[1743437932579,7.9189,126.29,126.28,30.19677913]
[1743437932979,0.0522086,126.31,126.28,41.25584588]
[1743437933185,0.0522086,126.31,126.3,11.05906675]
[1743437933485,0.0522086,126.31,126.29,11.05906675]
[1743437933785,0.0522086,126.31,126.28,41.25584588]
[1743437933985,7.9701086,126.31,126.28,41.25584588]
[1743437934385,0.0522086,126.31,126.28,30.19677913]
[1743437934582,7.9187,126.3,126.28,30.19677913]
[1743437935485,7.9189,126.29,126.28,0.05677913]
[1743437936387,0.0522086,126.31,126.28,0.05677913]
[1743437936787,7.9701086,126.31,126.28,7.97627913]
[1743437936992,0.0522086,126.31,126.28,0.05677913]
[1743437937290,0.0522086,126.31,126.29,30.12]
[1743437937488,0.0522086,126.31,126.29,38.0385]
[1743437938790,0.0522086,126.31,126.3,7.9182]
[1743437938990,0.0522086,126.31,126.22,30.12]
[1743437939293,11.05906675,126.28,126.23,41.17906675]
[1743437939494,18.97916675,126.28,126.23,49.10146675]
[1743437939891,7.9192,126.29,126.25,11.05906675]
[1743437940092,0.05124971,126.27,126.26,30.12]
[1743437940593,0.05124971,126.27,126.24,30.17961346]
[1743437941095,7.97174971,126.27,126.24,30.17961346]
[1743437941586,0.05124971,126.27,126.25,11.05906675]
[1743437941790,0.05124971,126.27,126.24,47.41430842]
[1743437942390,0.05124971,126.27,126.24,55.33600842]
[1743437942789,0.05124971,126.27,126.24,47.41430842]
[1743437943395,2.0548,126.34,126.26,17.23469496]
[1743437943588,7.9189,126.29,126.27,30.12]
[1743437943785,2.0548,126.34,126.27,30.12]
[1743437943986,7.9195,126.28,126.27,30.12]
[1743437944189,17.23469496,126.33,126.25,30.12]
[1743437944395,0.05220711,126.29,126.26,0.06068241]
[1743437945194,7.9199,126.28,126.26,0.06068241]
[1743437946297,0.05220711,126.29,126.26,0.06068241]
[1743437946298,7.97140711,126.29,126.26,0.06068241]
[1743437946998,7.97140711,126.29,126.26,7.98118241]
[1743437947188,0.05220711,126.29,126.26,17.29537737]
[1743437947696,7.97120711,126.29,126.26,25.21577737]
[1743437947892,0.05220711,126.29,126.28,17.23469496]
[1743437948097,10.87751532,126.36,126.29,7.9185]
[1743437948298,7.9174,126.32,126.29,7.9185]
[1743437948692,10.87751532,126.36,126.29,7.9185]
[1743437949097,0.05548765,126.34,126.31,0.05465266]
[1743437949299,0.05548765,126.34,126.31,30.17465266]
[1743437949998,32.29534022,126.4,126.35,34.46938992]
[1743437950296,32.29534022,126.4,126.39,25.14729496]
[1743437950494,32.29534022,126.4,126.39,55.26729496]
[1743437951095,86.18006273,126.41,126.4,7.912]
[1743437952896,244.31658962,126.43,126.39,47.35469496]
[1743437953101,244.31658962,126.43,126.42,17.23469496]